bitfinex/quotes_ETHUSD_20241019
["timestamp","ask_amount","ask_price","bid_price","bid_amount"]
[1729300265890,0.472,2642.6,2641.9,0.55]
[1729300268160,0.472,2642.6,2641.7,0.55]
[1729300268344,0.472,2642.6,2641.9,0.55]
[1729300268649,0.472,2642.6,2641.5,3.0]
[1729300268951,0.472,2642.6,2641.4,0.44976549]
[1729300269156,0.472,2642.6,2641.2,7.29]
[1729300269357,0.472,2642.6,2641.2,7.73976549]
[1729300269540,0.472,2642.6,2641.3,0.07536807]
[1729300269854,0.472,2642.6,2641.2,7.29]
[1729300270354,2.12008785,2642.5,2641.2,7.29]
[1729300270556,0.472,2642.3,2640.9,1.68708787]
[1729300270862,0.472,2642.3,2640.6,9.76516203]
[1729300270863,0.472,2642.2,2640.6,9.76516203]
[1729300271059,0.472,2642.0,2640.6,10.21492752]
[1729300271542,0.472,2642.0,2640.6,8.64533235]
[1729300271854,0.472,2642.0,2640.7,0.90348787]
[1729300272219,0.472,2642.0,2640.7,3.90348787]
[1729300272419,0.472,2642.0,2640.6,0.45184448]
[1729300273846,0.472,2642.0,2640.7,0.55]
[1729300274823,0.472,2642.0,2640.8,0.07572237]
[1729300275045,0.472,2642.0,2640.8,0.97921024]
[1729300275328,0.472,2642.0,2640.9,0.55]
[1729300275556,0.472,2642.0,2641.0,0.52547924]
[1729300275823,0.472,2642.0,2641.0,0.97920162]
[1729300277262,0.472,2642.0,2641.1,0.55]
[1729300277422,0.472,2642.0,2641.2,0.07570801]
[1729300278259,0.472,2642.0,2641.1,0.07570801]
[1729300279865,0.472,2642.0,2641.0,0.55]
[1729300280064,0.472,2642.0,2640.9,0.55]
[1729300281428,0.472,2642.0,2641.1,0.55]
[1729300281663,0.472,2642.0,2641.2,0.07571134]
[1729300282081,0.472,2642.0,2641.1,0.55]
[1729300282381,0.472,2642.0,2641.0,0.55]
[1729300282780,0.472,2642.0,2641.1,0.07571139]
[1729300283085,0.472,2642.0,2641.2,0.07571134]
[1729300283293,0.472,2642.0,2641.1,0.07571138]
[1729300294550,0.472,2642.0,2641.0,0.55]
[1729300294954,0.472,2642.0,2641.1,0.07571118]
[1729300297190,0.472,2642.0,2641.2,1.3747]
[1729300297394,0.472,2642.0,2641.4,0.55]
[1729300297764,0.472,2642.0,2641.5,0.07570198]
[1729300298181,0.472,2642.0,2641.3,0.55]
[1729300300841,0.472,2642.0,2641.3,3.55]
[1729300300965,0.472,2642.0,2641.3,0.55]
[1729300314434,0.472,2642.0,2641.4,0.07570198]
[1729300314729,0.472,2642.0,2641.4,3.90386747]
[1729300314894,0.472,2642.0,2641.4,3.52546747]
[1729300315492,0.472,2642.0,2641.4,3.44976549]
[1729300316033,0.472,2642.0,2641.4,3.0]
[1729300319748,0.472,2642.0,2641.3,5.11959517]
[1729300320104,0.472,2642.0,2641.3,0.55]
[1729300320538,0.472,2642.0,2641.3,5.11959517]
[1729300321148,0.472,2642.0,2641.3,2.11959517]
[1729300322028,0.472,2642.0,2641.3,0.55]
[1729300322238,0.472,2642.0,2641.3,2.11959517]
[1729300323814,0.472,2642.0,2641.4,0.07570402]
[1729300324013,0.472,2642.0,2641.4,5.09506468]
[1729300324714,0.472,2642.0,2641.5,0.44976549]
[1729300324949,0.472,2642.0,2641.6,0.07570402]
[1729300327763,0.472,2642.0,2641.4,4.56959517]
[1729300327947,0.472,2642.0,2641.3,5.11959517]
[1729300328323,0.472,2642.0,2641.4,1.56959517]
[1729300329021,0.472,2642.0,2641.3,5.11959517]
[1729300329237,0.472,2642.0,2641.4,0.07570399]
[1729300329568,0.472,2642.0,2641.4,2.09506465]
[1729300329720,0.472,2642.0,2641.4,5.09506465]
[1729300334775,0.472,2642.0,2641.4,5.47346465]
[1729300335077,0.472,2642.0,2641.4,5.09506465]
[1729300335534,0.472,2642.0,2641.5,0.55]
[1729300335737,0.472,2642.0,2641.5,5.56936066]
[1729300335932,0.472,2642.0,2641.7,0.55]
[1729300337337,0.472,2642.0,2641.8,0.07192119]
[1729300338242,0.472,2642.0,2641.7,0.55]
[1729300338874,0.472,2642.0,2641.7,5.11959517]
[1729300339283,0.472,2642.0,2641.7,0.55]
[1729300339484,0.472,2642.0,2641.8,0.07569368]
[1729300341269,0.472,2643.1,2641.8,0.07569368]
[1729300341443,0.472,2642.9,2641.9,1.00372238]
[1729300341685,2.38029585,2643.2,2641.9,1.00372238]
[1729300341686,0.472,2642.7,2642.0,0.07568295]
[1729300341979,0.472,2642.7,2642.0,3.0]
[1729300342770,0.472,2642.7,2641.9,4.3067]
[1729300346099,0.472,2642.7,2641.9,0.55]
[1729300351563,0.472,2642.7,2642.0,0.0756876]
[1729300351763,0.472,2642.7,2642.0,0.52545309]
[1729300357703,0.472,2642.7,2641.9,0.55]
[1729300357887,0.472,2642.7,2641.8,0.55]
[1729300358414,0.472,2642.7,2641.8,2.56936066]
[1729300358600,0.472,2642.7,2642.0,0.55]
[1729300360103,0.472,2642.7,2641.9,0.55]
[1729300363781,0.472,2642.7,2641.8,3.0]
[1729300363782,0.472,2642.7,2641.8,0.55]
[1729300367914,0.472,2642.7,2641.9,0.07568729]
[1729300368119,0.472,2642.7,2641.9,3.52545278]
[1729300368276,0.472,2642.7,2641.9,3.97917516]
[1729300370183,0.472,2642.7,2642.1,0.8229]
[1729300370390,0.472,2642.7,2642.2,0.0756791]
[1729300370906,0.472,2642.7,2642.1,0.8229]
[1729300371113,0.472,2642.7,2642.2,0.55]
[1729300374700,0.472,2642.7,2642.3,0.04952122]
[1729300375009,0.472,2643.6,2642.5,0.8015]
[1729300375200,0.472,2643.4,2642.6,1.52915529]
[1729300376521,0.472,2643.4,2642.6,1.07543291]
[1729300383526,0.472,2643.4,2642.6,0.55]
[1729300385147,0.472,2643.4,2642.5,0.55]
[1729300385444,0.472,2643.4,2642.4,0.55]
[1729300385652,0.472,2643.4,2642.4,0.99976549]
[1729300389461,0.472,2643.4,2642.5,0.52543472]
[1729300389958,0.472,2643.4,2642.5,0.44976549]
[1729300390543,0.472,2643.4,2642.5,0.90128499]
[1729300390850,0.472,2643.4,2642.5,0.4515195]
[1729300395060,0.472,2643.4,2642.5,0.8299195]
[1729300395224,0.472,2643.4,2642.5,0.4515195]
[1729300396036,0.472,2643.4,2642.6,0.07566919]
[1729300397369,0.472,2643.4,2642.6,0.52543468]
[1729300397666,0.472,2643.4,2642.6,1.80315706]
[1729300397968,0.472,2643.4,2642.7,0.55]
[1729300398136,0.472,2643.4,2642.8,0.07566252]
[1729300398665,0.472,2643.4,2642.7,0.55]
[1729300398827,0.472,2643.4,2642.6,0.55]
[1729300399872,0.472,2643.4,2642.6,4.82376549]
[1729300400157,0.4699,2643.4,2642.7,0.52514183]
[1729300400366,0.4699,2643.4,2642.8,0.55]
[1729300400578,0.4699,2643.4,2642.9,0.07537063]
[1729300401355,0.4699,2643.4,2642.8,0.55]
[1729300401658,0.4699,2643.4,2642.7,0.55]
[1729300403772,0.4699,2643.4,2642.6,0.55]
[1729300405077,0.4699,2643.4,2642.6,0.99976549]
[1729300405387,0.4699,2643.4,2642.8,0.55]
[1729300405673,0.4699,2643.4,2642.6,0.55]
[1729300405875,0.4699,2643.4,2642.5,0.4515195]
[1729300406339,0.4699,2643.4,2642.5,0.90128499]
[1729300413885,0.4699,2643.4,2642.5,0.44976549]
[1729300414088,0.4699,2643.4,2642.5,0.90348787]
[1729300414298,0.4699,2643.4,2642.6,0.49017083]
[1729300414459,0.4699,2643.4,2642.7,0.04040381]
[1729300415002,0.4699,2643.4,2642.6,0.44976549]
[1729300415498,0.4699,2643.4,2642.5,0.45372238]
[1729300415696,0.4699,2643.4,2642.5,0.90348787]
[1729300415999,0.4699,2643.4,2642.5,5.47308304]
[1729300416204,0.4699,2643.4,2642.6,3.07566801]
[1729300418296,0.4699,2643.2,2642.6,3.07566801]
[1729300420502,0.4699,2643.2,2642.6,4.64526318]
[1729300420826,0.4699,2643.2,2642.6,4.56959517]
[1729300423084,0.4699,2643.2,2642.6,3.0]
[1729300423320,0.4699,2643.2,2642.6,4.56959517]
[1729300423537,0.4699,2643.2,2642.6,1.56959517]
[1729300425438,0.4699,2643.2,2642.6,4.56959517]
[1729300425797,0.4699,2643.2,2642.6,1.56959517]
[1729300426635,0.4699,2643.2,2642.5,5.47308304]
[1729300426933,0.4699,2643.2,2642.7,0.55]
[1729300427139,0.4699,2643.2,2642.6,6.32866066]
[1729300427308,0.4699,2643.2,2642.8,2.11959517]
[1729300427508,0.4699,2643.6,2642.9,3.52542278]
[1729300427721,0.4699,2643.6,2642.9,5.09501795]
[1729300428734,0.4699,2643.6,2643.0,0.55]
[1729300429049,0.4699,2643.6,2643.1,0.07565156]
[1729300429339,0.4699,2643.6,2643.0,0.07565156]
[1729300431744,0.4699,2643.6,2643.0,0.55]
[1729300434425,0.4699,2643.6,2643.2,0.55]
[1729300434666,0.4699,2643.6,2643.3,0.075651]
[1729300436672,0.1211172,2643.7,2643.4,0.55]
[1729300437868,0.1211172,2643.7,2643.3,0.44976549]
[1729300437869,0.1211172,2643.7,2643.3,0.55]
[1729300438628,0.1211172,2643.7,2643.0,3.0]
[1729300438629,0.4699,2643.6,2643.0,3.0]
[1729300438830,0.4699,2643.6,2643.0,3.55]
[1729300439861,0.4699,2643.6,2643.0,5.57331755]
[1729300440069,0.4699,2643.6,2643.2,0.55]
[1729300440371,0.4699,2643.6,2643.2,3.55]
[1729300440534,0.4699,2643.6,2643.2,0.55]
[1729300440726,0.4699,2643.6,2643.4,0.55]
[1729300440925,0.4699,2643.6,2643.2,0.55]
[1729300442635,0.4699,2643.6,2643.3,0.55]
[1729300442836,0.1211172,2643.7,2643.3,0.55]
[1729300443032,0.1211172,2643.7,2643.5,0.55]
[1729300443273,0.1211172,2643.7,2643.6,0.55]
[1729300443633,0.1211172,2643.7,2643.5,0.55]
[1729300443867,0.1211172,2643.7,2643.6,0.03171019]
[1729300444354,0.1211172,2643.7,2643.6,0.07563876]
[1729300444564,0.1211172,2643.7,2643.6,0.62563876]
[1729300444742,0.1211172,2643.7,2643.5,3.55]
[1729300444954,0.1211172,2643.7,2643.6,0.55]
[1729300445590,0.1211172,2643.7,2643.6,1.79166549]
[1729300446179,0.1211172,2643.7,2643.6,1.3419]
[1729300451976,0.1211172,2643.7,2643.6,1.79166549]
[1729300452179,0.1211172,2643.7,2643.6,2.24538787]
[1729300452402,0.1211172,2643.7,2643.6,5.24538787]
[1729300453191,0.1211172,2643.7,2643.6,2.24538787]
[1729300454846,0.1211172,2643.7,2643.6,7.51538787]
[1729300462413,0.1211172,2643.7,2643.6,1.79166549]
[1729300462592,0.1211172,2643.7,2643.6,1.3419]
[1729300463386,0.1211172,2643.7,2643.6,7.06166549]
[1729300463632,0.1211172,2643.7,2643.6,7.51538787]
[1729300465477,0.1211172,2643.7,2643.6,7.06166549]
[1729300465790,0.1211172,2643.7,2643.6,6.6119]
[1729300467107,0.1211172,2643.7,2643.6,7.06166549]
[1729300471098,0.1211172,2643.7,2643.6,7.51538787]
[1729300471611,0.1211172,2643.7,2643.6,9.08498304]
[1729300475401,0.1211172,2643.7,2643.6,9.46338304]
[1729300475632,0.1211172,2643.7,2643.6,7.89378787]
[1729300478657,0.1211172,2643.7,2643.6,9.86201304]
[1729300479017,0.1211172,2643.7,2643.6,13.84401304]
[1729300479405,0.1211172,2643.7,2643.6,12.94052517]
[1729300479846,0.1211172,2643.7,2643.6,8.95852517]
[1729300480713,0.1211172,2643.7,2643.6,6.9903]
[1729300480914,0.1211172,2643.7,2643.6,6.6119]
[1729300481178,0.1211172,2643.7,2643.6,8.95852517]
[1729300481454,0.1211172,2643.7,2643.6,9.40829066]
[1729300481803,0.1211172,2643.7,2643.6,9.41014887]
[1729300483636,0.1211172,2643.7,2643.6,7.44006549]
[1729300484054,0.1211172,2643.7,2643.6,7.06166549]
[1729300484361,0.1211172,2643.7,2643.6,8.24039698]
[1729300484572,0.1211172,2643.7,2643.6,7.39695078]
[1729300484930,0.1211172,2643.7,2643.6,5.82]
[1729300485269,0.1211172,2643.7,2643.6,7.79063149]
[1729300485571,0.1211172,2643.7,2643.6,1.97063149]
[1729300485871,0.1211172,2643.7,2643.6,3.0]
[1729300486056,0.1211172,2643.7,2643.6,1.97063149]
[1729300486381,0.1211172,2643.7,2643.6,1.97180348]
[1729300486539,0.1211172,2643.7,2643.5,4.97180348]
[1729300486872,0.1211172,2643.7,2643.6,0.55]
[1729300487045,0.1211172,2643.7,2643.6,2.12755988]
[1729300487252,0.1211172,2643.7,2643.6,0.55]
[1729300488280,0.1211172,2643.7,2643.6,5.52180348]
[1729300490757,0.1211172,2643.7,2643.6,6.06268233]
[1729300491148,0.1211172,2643.7,2643.6,6.06437347]
[1729300492278,0.1211172,2643.7,2643.6,1.12405668]
[1729300495037,0.1211172,2643.7,2643.6,1.04842498]
[1729300495365,0.1211172,2643.7,2643.6,4.04842498]
[1729300495673,0.1211172,2643.7,2643.6,1.04842498]
[1729300497572,0.1211172,2643.7,2643.6,1.59245989]
[1729300498641,0.1211172,2643.7,2643.6,1.66781575]
[1729300499600,0.1211172,2643.7,2643.6,7.03717756]
[1729300500457,0.1211172,2643.7,2643.6,7.03801016]
[1729300501769,0.1211172,2643.7,2643.6,5.99555027]
[1729300502081,0.1211172,2643.7,2643.6,3.62535586]
[1729300502386,0.5910172,2643.7,2643.6,5.52568949]
[1729300502551,0.5910172,2643.7,2643.6,5.60132213]
[1729300502747,0.5910172,2643.7,2643.6,0.62563264]
[1729300504153,0.5910172,2643.7,2643.6,5.5256695]
[1729300506592,0.5910172,2643.7,2643.6,5.52550011]
[1729300508994,0.5910172,2643.7,2643.6,3.55]
[1729300509298,0.5910172,2643.7,2643.6,5.13019205]
[1729300509606,0.5910172,2643.7,2643.5,4.58019205]
[1729300511249,0.5910172,2643.7,2643.5,1.58019205]
[1729300511568,0.5910172,2643.7,2643.4,5.12288948]
[1729300512566,0.5910172,2643.7,2643.5,1.58019205]
[1729300512767,0.5910172,2643.7,2643.5,2.12288948]
[1729300513283,0.5910172,2643.7,2643.5,0.54269743]
[1729300513486,0.5910172,2643.7,2643.5,2.12288948]
[1729300514364,0.5910172,2643.7,2643.5,0.54269743]
[1729300516230,0.5910172,2643.7,2643.5,2.12288948]
[1729300516385,0.5910172,2643.7,2643.5,0.54269743]
[1729300517520,0.5910172,2643.7,2643.6,0.07564334]
[1729300517717,0.5910172,2643.7,2643.6,0.6560406]
[1729300519511,0.5910172,2643.7,2643.6,0.07564334]
[1729300519694,0.4699,2643.6,2643.2,1.58019205]
[1729300520105,0.4699,2643.6,2643.1,1.58019205]
[1729300520309,0.4699,2643.6,2643.2,0.55]
[1729300520523,0.4699,2643.6,2643.2,3.22848423]
[1729300520924,0.4699,2643.6,2643.3,3.0]
[1729300521134,0.4699,2643.6,2643.3,4.1724799]
[1729300521327,0.4699,2643.6,2643.4,0.07564934]
[1729300521540,0.4699,2643.6,2643.4,1.24812924]
[1729300531649,0.4699,2643.6,2643.2,0.55]
[1729300532564,0.4699,2643.6,2643.1,3.0]
[1729300532852,0.4699,2643.6,2643.0,2.75267195]
[1729300532853,0.4699,2643.6,2643.0,0.55]
[1729300533665,0.4699,2643.6,2642.9,0.55]
[1729300534966,0.4699,2643.6,2642.9,3.55]
[1729300535531,0.4699,2643.6,2642.9,3.0]
[1729300535720,0.4699,2643.6,2642.8,0.61375112]
[1729300537222,0.4699,2643.6,2642.7,0.55872878]
[1729300537436,0.4699,2643.6,2642.7,1.1724799]
[1729300537655,0.4699,2643.6,2642.8,1.1724799]
[1729300540924,0.4699,2643.6,2642.9,0.05567265]
[1729300541288,0.4699,2643.6,2642.9,1.22815255]
[1729300542058,0.4699,2643.6,2642.9,1.1724799]
[1729300544954,0.4699,2643.6,2643.0,1.1724799]
[1729300545176,0.4699,2643.6,2643.1,0.07565757]
[1729300545475,0.4699,2643.6,2643.0,1.1724799]
[1729300553903,0.4699,2643.6,2642.7,3.0]
[1729300553904,0.4699,2643.6,2642.6,4.9394799]
[1729300554201,0.4699,2643.6,2642.7,4.7224799]
[1729300554601,0.4699,2643.6,2642.7,1.7224799]
[1729300555906,0.4699,2643.6,2642.7,4.7224799]
[1729300556395,0.4699,2643.6,2642.7,1.7224799]
[1729300562600,0.4699,2643.6,2642.7,1.1724799]
[1729300564903,0.53728207,2643.5,2642.7,1.1724799]
[1729300567601,0.4699,2643.5,2642.7,1.1724799]
[1729300568409,0.4699,2643.5,2642.8,0.07566976]
[1729300568774,0.4699,2643.3,2642.8,0.07566976]
[1729300572671,0.4699,2643.3,2642.9,0.55872878]
[1729300574387,0.4699,2643.3,2642.8,0.68942088]
[1729300574709,0.4699,2643.2,2642.8,0.68942088]
[1729300577427,0.4699,2643.2,2642.8,1.24814966]
[1729300591035,0.4699,2643.6,2642.9,1.1724799]
[1729300591188,0.4699,2643.6,2643.0,0.07566028]
[1729300591386,0.06399653,2643.5,2643.0,0.55872878]
[1729300591591,0.4699,2643.4,2642.9,3.0]
[1729300591828,0.4699,2643.4,2642.8,0.7694]
[1729300594088,0.4699,2643.4,2642.7,4.58019205]
[1729300594289,0.4699,2643.4,2642.7,5.75267195]
[1729300600156,0.4699,2643.4,2642.8,1.1724799]
[1729300600341,0.4699,2643.2,2642.8,1.1724799]
[1729300603422,0.4699,2643.2,2642.9,0.55872878]
[1729300603748,0.4699,2643.2,2642.9,4.1724799]
[1729300608314,0.4699,2643.2,2642.9,1.1724799]
[1729300609626,0.4699,2643.2,2642.8,1.58019205]
[1729300609932,0.4699,2643.2,2642.7,4.58019205]
[1729300610125,0.4699,2643.2,2642.8,1.58019205]
[1729300610327,0.4699,2643.2,2642.8,1.1724799]
[1729300613247,0.4699,2643.2,2642.9,0.0756663]
[1729300614434,0.4699,2643.2,2642.8,1.1724799]
[1729300615034,0.4699,2643.2,2642.8,2.75267195]
[1729300615225,0.4699,2643.2,2642.9,3.0]
[1729300615433,0.4699,2643.2,2642.8,4.1724799]
[1729300615650,0.4699,2643.2,2642.8,5.75267195]
[1729300615850,0.4699,2643.2,2642.8,4.1724799]
[1729300618034,0.4699,2643.2,2642.8,5.75267195]
[1729300618248,0.4699,2643.2,2642.9,0.07566625]
[1729300618834,0.4699,2643.2,2642.9,0.63439503]
[1729300621649,0.4699,2643.2,2642.9,0.55872878]
[1729300624503,0.4699,2643.2,2642.9,1.1724799]
[1729300625606,0.4699,2643.2,2642.9,1.24814599]
[1729300630432,0.4699,2643.2,2642.8,1.58019205]
[1729300630730,0.4699,2643.2,2642.4,1.58019205]
[1729300631080,0.06380208,2643.1,2642.3,1.58019205]
[1729300631389,0.4699,2643.0,2642.3,1.58019205]
[1729300631633,0.4699,2643.0,2642.1,1.58019205]
[1729300632016,0.4699,2642.8,2642.1,1.58019205]
[1729300632230,0.4699,2642.8,2642.0,1.58019205]
[1729300632511,0.4699,2642.8,2641.9,1.58019205]
[1729300633122,0.4699,2642.8,2641.8,2.13892083]
[1729300634271,0.4699,2642.8,2641.8,0.55872878]
[1729300634731,0.4699,2642.8,2641.8,3.55872878]
[1729300635757,0.4699,2642.8,2641.8,0.55872878]
[1729300635758,0.4699,2642.7,2641.8,0.55872878]
[1729300635965,0.4699,2642.5,2641.4,1.58019205]
[1729300636273,0.4699,2642.5,2641.3,1.9771339]
[1729300636274,0.4699,2642.5,2641.3,1.58019205]
[1729300636431,0.4699,2642.3,2641.3,1.58019205]
[1729300637264,0.4699,2642.3,2641.2,5.35549205]
[1729300637671,0.4699,2642.3,2641.2,2.35549205]
[1729300637854,0.4699,2642.3,2641.2,0.7753]
[1729300638372,0.4699,2642.3,2641.1,1.58019205]
[1729300638373,0.4699,2642.3,2641.1,0.55]
[1729300638575,0.53310583,2642.2,2641.1,0.55]
[1729300638866,0.4699,2642.2,2641.1,3.55]
[1729300639293,0.4699,2642.2,2641.1,0.55]
[1729300639480,0.4699,2642.2,2641.2,0.55872878]
[1729300641402,0.4699,2642.2,2640.7,4.36724921]
[1729300641602,0.4699,2642.2,2641.1,0.55872878]
[1729300641822,0.4699,2642.0,2641.1,0.55872878]
[1729300642315,0.4699,2641.8,2641.1,0.55872878]
[1729300642726,0.06285299,2641.7,2641.1,0.55872878]
[1729300642877,0.4699,2641.6,2641.1,0.55872878]
[1729300647122,0.40876,2641.6,2641.1,0.55872878]
[1729300648935,0.40876,2641.6,2641.1,1.33402878]
[1729300649922,0.40876,2641.6,2641.2,0.55872878]
[1729300651540,0.39344577,2641.6,2641.2,0.55872878]
[1729300653212,0.21197777,2642.6,2641.2,0.55872878]
[1729300653709,0.0628217,2642.5,2641.2,0.55872878]
[1729300653882,0.55,2642.9,2641.2,0.55872878]
[1729300654084,0.55,2642.7,2641.2,0.55872878]
[1729300654283,0.06282218,2642.6,2641.2,0.55872878]
[1729300654526,0.3935,2642.5,2641.2,0.55872878]
[1729300654683,0.45633222,2642.5,2641.2,0.55872878]
[1729300659822,0.45633222,2642.5,2641.3,0.03948125]
[1729300660153,0.45633222,2642.5,2641.3,0.59821003]
[1729300660747,0.45633222,2642.5,2641.4,0.07570566]
[1729300685719,0.45633222,2642.5,2641.2,4.58019205]
[1729300685892,0.45633222,2642.5,2641.2,3.0]
[1729300686093,0.45633222,2642.5,2641.1,1.58019205]
[1729300686695,0.21062099,2642.4,2641.1,1.58019205]
[1729300686895,0.45633222,2642.5,2641.1,1.58019205]
[1729300687193,0.3935,2642.2,2641.1,2.13892083]
[1729300687391,0.3935,2642.2,2641.2,0.6344431]
[1729300687708,0.3935,2642.0,2641.2,3.6344431]
[1729300688891,0.3935,2641.8,2641.2,3.6344431]
[1729300690093,0.3935,2641.8,2641.2,5.21463515]
[1729300690992,0.3935,2641.8,2641.2,3.6344431]
[1729300691323,0.3935,2641.8,2641.2,5.21463515]
[1729300694527,0.3935,2641.8,2641.3,1.58019205]
[1729300695320,0.3935,2641.8,2641.2,5.21463515]
[1729300695838,0.3935,2641.8,2641.2,5.13892083]
[1729300699935,0.3935,2641.8,2641.3,1.58019205]
[1729300700427,0.3935,2641.8,2641.2,5.13892083]
[1729300701649,0.3935,2641.8,2641.3,1.58019205]
[1729300701792,0.3935,2641.8,2641.4,0.60581714]
[1729300702000,0.3935,2641.8,2641.5,0.0757051]
[1729300702498,0.3935,2641.8,2641.4,5.13892083]
[1729300705553,0.3935,2642.7,2641.5,5.15036728]
[1729300705857,0.05680307,2642.6,2641.6,5.94592083]
[1729300706012,0.3935,2642.5,2641.7,0.07569892]
[1729300706338,0.3935,2642.5,2641.7,0.6344277]
[1729300706713,0.3935,2642.3,2641.7,0.6344277]
[1729300708319,0.3935,2642.3,2641.7,0.55872878]
[1729300709122,0.3935,2642.3,2641.7,0.63442763]
[1729300712785,0.3935,2642.3,2641.8,0.55872878]
[1729300713067,0.3935,2642.3,2641.9,0.07568992]
[1729300714078,0.3935,2642.3,2641.8,4.35162878]
[1729300714579,0.3935,2642.3,2641.9,0.0372651]
[1729300714732,0.3935,2642.3,2641.8,4.35162878]
[1729300714733,0.3935,2642.3,2641.8,1.35162878]
[1729300719840,9.51463149,2643.6,2641.9,0.7929]
[1729300719841,0.3935,2643.5,2641.9,0.7929]
[1729300720089,0.3935,2643.5,2642.0,1.90162878]
[1729300720249,0.05492444,2643.4,2642.2,0.55]
[1729300720435,0.05492444,2643.4,2642.4,0.7929]
[1729300720436,0.3935,2643.3,2642.4,0.7929]
[1729300720640,0.44465584,2643.3,2642.5,0.63424007]
[1729300721362,0.3935,2643.3,2642.5,0.63424007]
[1729300721568,0.3935,2643.3,2642.5,0.55872878]
[1729300722581,0.3935,2643.3,2642.1,3.7929]
[1729300722732,0.3935,2643.3,2642.1,1.35162878]
[1729300722733,0.05141812,2643.2,2642.1,1.35162878]
[1729300722935,0.3935,2643.1,2642.2,0.55872878]
[1729300723251,0.3935,2643.1,2643.0,3.0]
[1729300723448,0.3935,2643.1,2642.3,0.07233457]
[1729300723768,0.3935,2643.1,2643.0,3.0]
[1729300724273,0.44518742,2643.1,2643.0,3.0]
[1729300725277,0.44518742,2643.1,2642.3,0.56677058]
[1729300725278,0.3935,2643.1,2642.4,0.7929]
[1729300725476,0.3935,2643.1,2643.0,3.0]
[1729300725677,0.3935,2643.1,2642.5,0.63105864]
[1729300725972,0.3935,2643.1,2642.5,1.12549465]
[1729300726131,0.3935,2643.1,2642.6,0.49443601]
[1729300726337,0.3935,2643.1,2642.7,0.63439457]
[1729300727075,0.3935,2643.1,2642.4,0.7929]
[1729300727373,0.3935,2643.1,2642.3,0.55]
[1729300728234,0.3935,2643.1,2642.4,0.07566977]
[1729300731046,0.3935,2643.1,2642.4,0.63439855]
[1729300731241,0.3935,2643.1,2642.5,0.55872878]
[1729300731573,0.3935,2643.1,2642.6,0.85356971]
[1729300738694,0.3935,2643.1,2642.5,1.05316479]
[1729300738900,0.3935,2643.1,2642.3,1.3279]
[1729300739391,0.3935,2643.1,2642.3,0.7779]
[1729300740207,0.3935,2643.1,2642.3,1.33662878]
[1729300740352,0.3935,2643.1,2642.3,0.55872878]
[1729300741268,0.3935,2643.1,2642.2,0.55872878]
[1729300742111,0.3935,2643.1,2642.3,0.07567947]
[1729300742267,0.3935,2643.1,2642.4,0.55872878]
[1729300742611,0.3935,2643.1,2642.5,0.57010116]
[1729300742817,0.3935,2643.1,2642.6,0.55872878]
[1729300743101,0.3935,2643.1,2642.7,0.07565942]
[1729300743319,0.3935,2643.1,2642.8,0.55872878]
[1729300743479,0.3935,2643.1,2642.9,0.07565893]
[1729300744607,0.3935,2643.1,2642.3,0.7779]
[1729300744767,0.3935,2643.1,2642.5,0.55]
[1729300746501,0.3935,2643.1,2642.5,0.55872878]
[1729300750221,0.3935,2643.1,2642.5,1.05316479]
[1729300750442,0.3935,2643.1,2642.6,1.05316479]
[1729300750719,0.3935,2643.1,2642.7,0.7668]
[1729300750925,0.3935,2643.1,2642.8,0.55860309]
[1729300751121,0.3935,2643.1,2642.8,1.0530391]
[1729300751331,0.3935,2643.1,2642.4,1.3168]
[1729300751489,0.3935,2643.1,2642.4,1.87540309]
[1729300751830,0.3935,2643.1,2642.4,1.3168]
[1729300751989,0.3935,2643.1,2642.5,0.55860309]
[1729300755716,0.3935,2643.1,2642.3,0.55860309]
[1729300755920,0.3935,2643.1,2642.3,1.0530391]
[1729300758606,0.3935,2643.1,2642.4,0.02020719]
[1729300758806,0.3935,2643.1,2642.4,1.0530391]
[1729300760649,0.3935,2643.1,2642.4,0.55860309]
[1729300761663,0.3935,2643.1,2642.1,4.58019205]
[1729300761946,0.3935,2643.1,2642.1,3.55860309]
[1729300762647,0.3935,2643.1,2642.2,0.55860309]
[1729300763229,0.35401558,2643.0,2642.2,0.55860309]
[1729300763553,1.77099487,2643.7,2642.2,0.55860309]
[1729300763554,0.3935,2642.9,2642.2,0.55860309]
[1729300771534,0.3935,2642.9,2641.9,3.0]
[1729300771735,0.3935,2642.9,2641.9,0.55860309]
[1729300772034,0.3935,2642.7,2641.9,0.55860309]
[1729300772361,0.3935,2642.7,2641.6,0.49443601]
[1729300772574,0.3935,2642.5,2641.6,1.0530391]
[1729300772869,0.3935,2642.5,2641.7,0.55860309]
[1729300773162,0.3935,2642.5,2641.7,0.63429611]
[1729300773674,0.3935,2642.5,2641.7,0.55860309]
[1729300778072,0.3935,2642.5,2641.8,0.07569299]
[1729300778287,0.3935,2642.5,2641.8,0.63429608]
[1729300778655,0.3935,2642.5,2641.8,0.55860309]
[1729300780380,0.3935,2642.5,2641.9,0.07569297]
[1729300780579,0.3935,2642.5,2641.8,0.55860309]
[1729300780770,0.3935,2642.5,2640.9,2.29371646]
[1729300780771,0.3935,2642.5,2641.3,1.85802568]
[1729300780955,0.3935,2642.5,2641.5,0.55860309]
[1729300781153,0.3935,2642.5,2641.6,0.54461472]
[1729300781385,0.3935,2642.5,2641.7,0.55860309]
[1729300781585,0.3935,2642.5,2641.8,0.05017491]
[1729300781812,0.3935,2642.5,2641.8,0.608778]
[1729300782083,0.3935,2642.3,2641.8,0.55860309]
[1729300782787,0.3935,2642.1,2641.8,0.55860309]
[1729300783162,0.3935,2642.1,2641.3,1.36358967]
[1729300783397,0.3935,2642.1,2641.5,0.55860309]
[1729300795002,0.3935,2642.1,2642.0,3.0]
[1729300795513,0.3935,2642.1,2641.5,0.55860309]
[1729300801968,0.3935,2642.1,2641.4,0.55860309]
[1729300802373,0.3935,2643.1,2641.5,1.30833601]